[Event "Titled Tuesday Blitz April 26 Late 2022"]
[White "Carrasco Miranda, Andres"]
[Black "Kim, Sergey"]
[WhiteFideId "3405990"]
[BlackFideId "13700570"]
[WhiteElo "2177"]
[BlackElo "2496"]
[Result "0-1"]
[Round "04"]
[TimeControl "180+1"]
[Date "2022.04.26"]
[WhiteClock "0:00:05"]
[BlackClock "0:01:28"]

1. d4 {[%clk 0:03:00]}  Nf6 {[%clk 0:02:58]} 2. c4 {[%clk 0:03:00]}  g6 {[%clk 0:02:58]} 3. g3 {[%clk 0:03:00]}  Bg7 {[%clk 0:02:58]} 4. Bg2 {[%clk 0:03:00]}  d6 {[%clk 0:02:59]} 5. Nc3 {[%clk 0:03:01]}  O-O {[%clk 0:02:59]} 6. Nf3 {[%clk 0:03:01]}  Nbd7 {[%clk 0:03:00]} 7. O-O {[%clk 0:03:02]}  e5 {[%clk 0:03:00]} 8. e4 {[%clk 0:03:02]}  exd4 {[%clk 0:03:00]} 9. Nxd4 {[%clk 0:03:03]}  Re8 {[%clk 0:03:00]} 10. h3 {[%clk 0:03:03]}  Nc5 {[%clk 0:03:01]} 11. Re1 {[%clk 0:03:02]}  c6 {[%clk 0:03:01]} 12. Bf4 {[%clk 0:03:02]}  Nh5 {[%clk 0:03:00]} 13. Be3 {[%clk 0:03:02]}  a5 {[%clk 0:03:00]} 14. Qd2 {[%clk 0:03:02]}  a4 {[%clk 0:03:00]} 15. Rad1 {[%clk 0:03:03]}  Qa5 {[%clk 0:03:00]} 16. Bh6 {[%clk 0:02:59]}  Bh8 {[%clk 0:03:00]} 17. Kh2 {[%clk 0:02:51]}  Nf6 {[%clk 0:02:59]} 18. f4 {[%clk 0:02:50]}  Nfd7 {[%clk 0:02:57]} 19. f5 {[%clk 0:02:46]}  Ne5 {[%clk 0:02:57]} 20. fxg6 {[%clk 0:02:46]}  hxg6 {[%clk 0:02:56]} 21. Rf1 {[%clk 0:01:53]}  Nxc4 {[%clk 0:02:52]} 22. Qf4 {[%clk 0:01:52]}  Ne5 {[%clk 0:02:51]} 23. Qh4 {[%clk 0:01:35]}  a3 {[%clk 0:02:40]} 24. Bf4 {[%clk 0:00:55]}  axb2 {[%clk 0:02:32]} 25. Bxe5 {[%clk 0:00:49]}  Bxe5 {[%clk 0:02:30]} 26. Rxf7 {[%clk 0:00:50]}  Kxf7 {[%clk 0:02:25]} 27. Qh7+ {[%clk 0:00:49]}  Kf6 {[%clk 0:02:18]} 28. Rf1+ {[%clk 0:00:46]}  Bf5 {[%clk 0:02:18]} 29. exf5 {[%clk 0:00:34]}  Bxg3+ {[%clk 0:02:06]} 30. Kh1 {[%clk 0:00:31]}  b1=Q {[%clk 0:01:58]} 31. fxg6+ {[%clk 0:00:17]}  Qxf1+ {[%clk 0:01:56]} 32. Bxf1 {[%clk 0:00:18]}  Qxc3 {[%clk 0:01:40]} 33. Qf7+ {[%clk 0:00:18]}  Ke5 {[%clk 0:01:40]} 34. Nf3+ {[%clk 0:00:17]}  Ke4 {[%clk 0:01:37]} 35. Ng5+ {[%clk 0:00:12]}  Ke3 {[%clk 0:01:29]} 36. Qf3+ {[%clk 0:00:07]}  Kd2 {[%clk 0:01:29]} 37. Qe2+ {[%clk 0:00:05]}  Rxe2 {[%clk 0:01:28]} 0-1


[Site "https://www.chess.com"]

[Event "Titled Tuesday Blitz April 26 Late 2022"]
[White "Czopor, Maciej"]
[Black "Zherebtsova, Alexandra"]
[WhiteFideId "21805431"]
[BlackFideId "24129518"]
[WhiteElo "1999"]
[BlackElo "2025"]
[Result "1/2-1/2"]
[Round "04"]
[TimeControl "180+1"]
[Date "2022.04.26"]
[WhiteClock "0:00:07"]
[BlackClock "0:00:04"]

1. Nf3 {[%clk 0:03:00]}  d5 {[%clk 0:02:58]} 2. g3 {[%clk 0:03:00]}  g6 {[%clk 0:02:58]} 3. Bg2 {[%clk 0:03:00]}  Bg7 {[%clk 0:02:58]} 4. O-O {[%clk 0:03:01]}  e5 {[%clk 0:02:58]} 5. d4 {[%clk 0:02:57]}  e4 {[%clk 0:02:51]} 6. Ne1 {[%clk 0:02:57]}  f5 {[%clk 0:02:50]} 7. c4 {[%clk 0:02:56]}  c6 {[%clk 0:02:49]} 8. Nc3 {[%clk 0:02:55]}  Ne7 {[%clk 0:02:42]} 9. Bg5 {[%clk 0:02:53]}  Be6 {[%clk 0:02:29]} 10. cxd5 {[%clk 0:02:49]}  cxd5 {[%clk 0:02:29]} 11. Nc2 {[%clk 0:02:46]}  h6 {[%clk 0:02:26]} 12. Bxe7 {[%clk 0:02:46]}  Qxe7 {[%clk 0:02:25]} 13. Ne3 {[%clk 0:02:43]}  Qd7 {[%clk 0:02:14]} 14. Qb3 {[%clk 0:02:38]}  Nc6 {[%clk 0:02:11]} 15. Rfd1 {[%clk 0:02:08]}  Nxd4 {[%clk 0:01:57]} 16. Qa3 {[%clk 0:00:47]}  Kf7 {[%clk 0:01:26]} 17. Nexd5 {[%clk 0:00:43]}  Nc2 {[%clk 0:01:15]} 18. Qa5 {[%clk 0:00:41]}  Nxa1 {[%clk 0:01:08]} 19. Nc7 {[%clk 0:00:41]}  Qc6 {[%clk 0:00:52]} 20. Nxa8 {[%clk 0:00:41]}  Rxa8 {[%clk 0:00:46]} 21. Rxa1 {[%clk 0:00:41]}  b6 {[%clk 0:00:45]} 22. Qa3 {[%clk 0:00:41]}  Bf8 {[%clk 0:00:40]} 23. Qa6 {[%clk 0:00:34]}  Bc4 {[%clk 0:00:39]} 24. Qa4 {[%clk 0:00:31]}  Qxa4 {[%clk 0:00:35]} 25. Nxa4 {[%clk 0:00:32]}  Be6 {[%clk 0:00:32]} 26. Rc1 {[%clk 0:00:29]}  Rc8 {[%clk 0:00:30]} 27. Rxc8 {[%clk 0:00:27]}  Bxc8 {[%clk 0:00:30]} 28. e3 {[%clk 0:00:26]}  Be6 {[%clk 0:00:30]} 29. a3 {[%clk 0:00:23]}  Bg7 {[%clk 0:00:29]} 30. f3 {[%clk 0:00:17]}  exf3 {[%clk 0:00:25]} 31. Bxf3 {[%clk 0:00:18]}  b5 {[%clk 0:00:25]} 32. Nc3 {[%clk 0:00:07]}  Bd7 {[%clk 0:00:17]} 33. Kf2 {[%clk 0:00:07]}  Ke6 {[%clk 0:00:17]} 34. Ke2 {[%clk 0:00:05]}  Kd6 {[%clk 0:00:17]} 35. Kd3 {[%clk 0:00:05]}  Kc5 {[%clk 0:00:17]} 36. b4+ {[%clk 0:00:04]}  Kd6 {[%clk 0:00:16]} 37. e4 {[%clk 0:00:03]}  fxe4+ {[%clk 0:00:14]} 38. Nxe4+ {[%clk 0:00:03]}  Ke5 {[%clk 0:00:12]} 39. Nc5 {[%clk 0:00:04]}  Be8 {[%clk 0:00:12]} 40. Ke3 {[%clk 0:00:03]}  g5 {[%clk 0:00:11]} 41. Nd3+ {[%clk 0:00:02]}  Kd6 {[%clk 0:00:11]} 42. Be4 {[%clk 0:00:03]}  Be5 {[%clk 0:00:10]} 43. Nc5 {[%clk 0:00:02]}  Bb2 {[%clk 0:00:10]} 44. Kd3 {[%clk 0:00:02]}  Bxa3 {[%clk 0:00:10]} 45. Kc3 {[%clk 0:00:03]}  a5 {[%clk 0:00:09]} 46. Nb7+ {[%clk 0:00:01]}  Kc7 {[%clk 0:00:08]} 47. Nxa5 {[%clk 0:00:02]}  Bc1 {[%clk 0:00:07]} 48. Bd3 {[%clk 0:00:01]}  Be3 {[%clk 0:00:07]} 49. Nb3 {[%clk 0:00:01]}  Kb6 {[%clk 0:00:06]} 50. Nd4 {[%clk 0:00:02]}  Bf2 {[%clk 0:00:05]} 51. Nf5 {[%clk 0:00:01]}  Bg1 {[%clk 0:00:05]} 52. h4 {[%clk 0:00:01]}  gxh4 {[%clk 0:00:05]} 53. gxh4 {[%clk 0:00:02]}  Bf2 {[%clk 0:00:05]} 54. Nxh6 {[%clk 0:00:01]}  Bxh4 {[%clk 0:00:04]} 55. Nf5 {[%clk 0:00:02]}  Bf6+ {[%clk 0:00:04]} 56. Nd4 {[%clk 0:00:03]}  Bxd4+ {[%clk 0:00:03]} 57. Kxd4 {[%clk 0:00:03]}  Bc6 {[%clk 0:00:04]} 58. Ke5 {[%clk 0:00:04]}  Bd7 {[%clk 0:00:04]} 59. Kd6 {[%clk 0:00:05]}  Bc6 {[%clk 0:00:04]} 60. Bf5 {[%clk 0:00:05]}  Bb7 {[%clk 0:00:04]} 61. Bd7 {[%clk 0:00:05]}  Be4 {[%clk 0:00:04]} 62. Be6 {[%clk 0:00:05]}  Bc6 {[%clk 0:00:04]} 63. Bd7 {[%clk 0:00:05]}  Bb7 {[%clk 0:00:04]} 64. Be6 {[%clk 0:00:05]}  Bc6 {[%clk 0:00:04]} 65. Bd5 {[%clk 0:00:06]}  Be8 {[%clk 0:00:03]} 66. Ke7 {[%clk 0:00:06]}  Bh5 {[%clk 0:00:03]} 67. Kd8 {[%clk 0:00:07]}  Be2 {[%clk 0:00:03]} 68. Ke7 {[%clk 0:00:06]}  Bd3 {[%clk 0:00:03]} 69. Kd6 {[%clk 0:00:07]}  Be2 {[%clk 0:00:03]} 70. Bc6 {[%clk 0:00:07]}  Bf1 {[%clk 0:00:03]} 71. Bd5 {[%clk 0:00:06]}  Be2 {[%clk 0:00:03]} 72. Bc6 {[%clk 0:00:07]}  Bf1 {[%clk 0:00:04]} 73. Bd5 {[%clk 0:00:07]}  Be2 {[%clk 0:00:04]} 1/2-1/2


[Site "https://www.chess.com"]

[Event "Titled Tuesday Blitz April 26 Late 2022"]
[White "Deac, Bogdan-Daniel"]
[Black "Mardov, Dimitar"]
[WhiteFideId "1226380"]
[BlackFideId "30919495"]
[WhiteElo "2648"]
[BlackElo "2185"]
[Result "1-0"]
[Round "04"]
[TimeControl "180+1"]
[Date "2022.04.26"]
[WhiteClock "0:00:12"]
[BlackClock "0:00:02"]

1. d4 {[%clk 0:03:00]}  Nf6 {[%clk 0:02:50]} 2. c4 {[%clk 0:03:00]}  e6 {[%clk 0:02:50]} 3. Nc3 {[%clk 0:02:59]}  Bb4 {[%clk 0:02:49]} 4. e3 {[%clk 0:02:59]}  O-O {[%clk 0:02:48]} 5. Ne2 {[%clk 0:02:59]}  d5 {[%clk 0:02:48]} 6. a3 {[%clk 0:02:58]}  Bd6 {[%clk 0:02:48]} 7. Ng3 {[%clk 0:02:57]}  c6 {[%clk 0:02:45]} 8. Qc2 {[%clk 0:02:51]}  e5 {[%clk 0:02:43]} 9. cxd5 {[%clk 0:02:44]}  exd4 {[%clk 0:02:27]} 10. exd4 {[%clk 0:02:44]}  cxd5 {[%clk 0:02:27]} 11. Bd3 {[%clk 0:02:37]}  Nc6 {[%clk 0:02:26]} 12. Be3 {[%clk 0:02:35]}  h6 {[%clk 0:02:18]} 13. Nf5 {[%clk 0:02:28]}  Bxf5 {[%clk 0:02:10]} 14. Bxf5 {[%clk 0:02:26]}  g6 {[%clk 0:01:31]} 15. Bh3 {[%clk 0:02:21]}  Kg7 {[%clk 0:01:24]} 16. O-O {[%clk 0:02:17]}  Re8 {[%clk 0:01:22]} 17. g3 {[%clk 0:02:13]}  a6 {[%clk 0:01:12]} 18. Bg2 {[%clk 0:02:07]}  Ne7 {[%clk 0:01:11]} 19. Bh3 {[%clk 0:01:57]}  Nh7 {[%clk 0:00:51]} 20. Qd2 {[%clk 0:01:47]}  h5 {[%clk 0:00:49]} 21. Rfe1 {[%clk 0:01:42]}  Kg8 {[%clk 0:00:43]} 22. Re2 {[%clk 0:01:35]}  Bc7 {[%clk 0:00:24]} 23. Rae1 {[%clk 0:01:33]}  Nc6 {[%clk 0:00:24]} 24. Bg2 {[%clk 0:01:31]}  Nf6 {[%clk 0:00:15]} 25. Bg5 {[%clk 0:01:27]}  Rxe2 {[%clk 0:00:16]} 26. Rxe2 {[%clk 0:01:20]}  Qd6 {[%clk 0:00:16]} 27. Bxf6 {[%clk 0:01:20]}  Qxf6 {[%clk 0:00:17]} 28. Nxd5 {[%clk 0:01:19]}  Qd6 {[%clk 0:00:15]} 29. Nxc7 {[%clk 0:01:18]}  Qxc7 {[%clk 0:00:15]} 30. d5 {[%clk 0:01:19]}  Ne5 {[%clk 0:00:15]} 31. d6 {[%clk 0:01:11]}  Qc5 {[%clk 0:00:16]} 32. Qd5 {[%clk 0:00:40]}  Qc1+ {[%clk 0:00:11]} 33. Bf1 {[%clk 0:00:39]}  Nc6 {[%clk 0:00:12]} 34. Kg2 {[%clk 0:00:28]}  Rd8 {[%clk 0:00:10]} 35. Rd2 {[%clk 0:00:28]}  Qe1 {[%clk 0:00:07]} 36. Bc4 {[%clk 0:00:26]}  Qe8 {[%clk 0:00:04]} 37. Re2 {[%clk 0:00:24]}  Qf8 {[%clk 0:00:05]} 38. d7 {[%clk 0:00:19]}  Kg7 {[%clk 0:00:02]} 39. Bxa6 {[%clk 0:00:12]} 1-0


[Site "https://www.chess.com"]

[Event "Titled Tuesday Blitz April 26 Late 2022"]
[White "Demchenko, Anton"]
[Black "Vachier-Lagrave, Maxime"]
[WhiteFideId "4160258"]
[BlackFideId "623539"]
[WhiteElo "2539"]
[BlackElo "2813"]
[Result "1-0"]
[Round "04"]
[TimeControl "180+1"]
[Date "2022.04.26"]
[WhiteClock "0:00:13"]
[BlackClock "0:00:03"]

1. e4 {[%clk 0:03:00]}  c5 {[%clk 0:02:58]} 2. Nf3 {[%clk 0:03:01]}  d6 {[%clk 0:02:58]} 3. d4 {[%clk 0:03:02]}  cxd4 {[%clk 0:02:59]} 4. Qxd4 {[%clk 0:03:02]}  Nc6 {[%clk 0:02:55]} 5. Qe3 {[%clk 0:03:02]}  Nf6 {[%clk 0:02:54]} 6. h3 {[%clk 0:02:59]}  g6 {[%clk 0:02:54]} 7. Bc4 {[%clk 0:02:59]}  Bg7 {[%clk 0:02:54]} 8. O-O {[%clk 0:03:00]}  O-O {[%clk 0:02:55]} 9. Nc3 {[%clk 0:03:01]}  Bd7 {[%clk 0:02:48]} 10. Rd1 {[%clk 0:03:00]}  Rc8 {[%clk 0:02:47]} 11. Qe2 {[%clk 0:03:00]}  Na5 {[%clk 0:02:36]} 12. Bb3 {[%clk 0:02:54]}  Qc7 {[%clk 0:02:09]} 13. Bg5 {[%clk 0:02:50]}  Bc6 {[%clk 0:02:05]} 14. Nd4 {[%clk 0:02:34]}  h6 {[%clk 0:01:59]} 15. Bh4 {[%clk 0:02:29]}  Kh7 {[%clk 0:01:50]} 16. Bg3 {[%clk 0:01:49]}  Nh5 {[%clk 0:00:56]} 17. Bh2 {[%clk 0:01:49]}  Qb6 {[%clk 0:00:56]} 18. Nxc6 {[%clk 0:01:27]}  bxc6 {[%clk 0:00:54]} 19. e5 {[%clk 0:01:28]}  dxe5 {[%clk 0:00:44]} 20. Bxe5 {[%clk 0:01:29]}  e6 {[%clk 0:00:34]} 21. Bxg7 {[%clk 0:01:29]}  Nxg7 {[%clk 0:00:14]} 22. Ne4 {[%clk 0:01:26]}  Nf5 {[%clk 0:00:12]} 23. Nf6+ {[%clk 0:01:19]}  Kg7 {[%clk 0:00:12]} 24. Nd7 {[%clk 0:01:20]}  Qc7 {[%clk 0:00:12]} 25. Nxf8 {[%clk 0:01:18]}  Rxf8 {[%clk 0:00:13]} 26. c3 {[%clk 0:01:15]}  Nb7 {[%clk 0:00:12]} 27. Bc2 {[%clk 0:01:13]}  Ne7 {[%clk 0:00:12]} 28. Qe3 {[%clk 0:01:11]}  Nd5 {[%clk 0:00:13]} 29. Qxa7 {[%clk 0:01:10]}  Nf4 {[%clk 0:00:06]} 30. Qe3 {[%clk 0:01:05]}  e5 {[%clk 0:00:06]} 31. Rd2 {[%clk 0:00:55]}  Re8 {[%clk 0:00:06]} 32. Rad1 {[%clk 0:00:55]}  Re7 {[%clk 0:00:07]} 33. a4 {[%clk 0:00:37]}  h5 {[%clk 0:00:07]} 34. h4 {[%clk 0:00:32]}  Qc8 {[%clk 0:00:07]} 35. g3 {[%clk 0:00:27]}  Qg4 {[%clk 0:00:07]} 36. Be4 {[%clk 0:00:26]}  Na5 {[%clk 0:00:07]} 37. Qf3 {[%clk 0:00:19]}  Nh3+ {[%clk 0:00:03]} 38. Kh2 {[%clk 0:00:15]}  Qe6 {[%clk 0:00:04]} 39. Rd6 {[%clk 0:00:13]}  Qc8 {[%clk 0:00:03]} 40. Rd8 {[%clk 0:00:13]} 1-0


[Site "https://www.chess.com"]

[Event "Titled Tuesday Blitz April 26 Late 2022"]
[White "Derraugh, Geordie"]
[Black "Maksimovic, Bojan"]
[WhiteFideId "2603950"]
[BlackFideId "14408120"]
[WhiteElo "2116"]
[BlackElo "2448"]
[Result "1-0"]
[Round "04"]
[TimeControl "180+1"]
[Date "2022.04.26"]
[WhiteClock "0:00:11"]
[BlackClock "0:01:22"]

1. e4 {[%clk 0:03:00]}  c5 {[%clk 0:03:00]} 2. c3 {[%clk 0:03:01]}  d6 {[%clk 0:02:54]} 3. Nf3 {[%clk 0:03:00]}  g6 {[%clk 0:02:54]} 4. Bd3 {[%clk 0:03:00]}  Bg7 {[%clk 0:02:54]} 5. Bc2 {[%clk 0:03:00]}  Nc6 {[%clk 0:02:51]} 6. O-O {[%clk 0:03:00]}  Bg4 {[%clk 0:02:51]} 7. h3 {[%clk 0:03:00]}  Bxf3 {[%clk 0:02:51]} 8. Qxf3 {[%clk 0:03:01]}  Nf6 {[%clk 0:02:51]} 9. Rd1 {[%clk 0:02:57]}  Nd7 {[%clk 0:02:52]} 10. Qe3 {[%clk 0:02:49]}  Rc8 {[%clk 0:02:51]} 11. Na3 {[%clk 0:02:43]}  O-O {[%clk 0:02:51]} 12. d4 {[%clk 0:02:40]}  cxd4 {[%clk 0:02:52]} 13. cxd4 {[%clk 0:02:41]}  e5 {[%clk 0:02:49]} 14. dxe5 {[%clk 0:02:38]}  dxe5 {[%clk 0:02:50]} 15. Nb5 {[%clk 0:02:28]}  Nd4 {[%clk 0:02:39]} 16. Nxd4 {[%clk 0:02:28]}  exd4 {[%clk 0:02:39]} 17. Qe2 {[%clk 0:02:27]}  Re8 {[%clk 0:02:38]} 18. Bf4 {[%clk 0:02:15]}  Nc5 {[%clk 0:02:36]} 19. Qf3 {[%clk 0:01:50]}  Qb6 {[%clk 0:02:32]} 20. Rab1 {[%clk 0:01:43]}  Rcd8 {[%clk 0:02:23]} 21. b4 {[%clk 0:01:40]}  Ne6 {[%clk 0:02:19]} 22. Bb3 {[%clk 0:01:41]}  d3 {[%clk 0:02:06]} 23. Be3 {[%clk 0:01:40]}  Qa6 {[%clk 0:01:54]} 24. Rbc1 {[%clk 0:01:27]}  Bd4 {[%clk 0:01:44]} 25. Bxd4 {[%clk 0:01:19]}  Rxd4 {[%clk 0:01:45]} 26. Rc7 {[%clk 0:01:17]}  Nxc7 {[%clk 0:01:39]} 27. Qxf7+ {[%clk 0:01:16]}  Kh8 {[%clk 0:01:40]} 28. Qxc7 {[%clk 0:01:10]}  Rdxe4 {[%clk 0:01:40]} 29. Qc3+ {[%clk 0:01:05]}  R8e5 {[%clk 0:01:40]} 30. f4 {[%clk 0:01:04]}  Qb6+ {[%clk 0:01:39]} 31. Kh2 {[%clk 0:00:40]}  Qd4 {[%clk 0:01:40]} 32. Qxd4 {[%clk 0:00:19]}  Rxd4 {[%clk 0:01:41]} 33. fxe5 {[%clk 0:00:19]}  Kg7 {[%clk 0:01:41]} 34. Kg3 {[%clk 0:00:17]}  b5 {[%clk 0:01:37]} 35. Kf3 {[%clk 0:00:17]}  Rxb4 {[%clk 0:01:37]} 36. Rxd3 {[%clk 0:00:17]}  a5 {[%clk 0:01:38]} 37. Rd7+ {[%clk 0:00:13]}  Kf8 {[%clk 0:01:35]} 38. Rxh7 {[%clk 0:00:13]}  a4 {[%clk 0:01:36]} 39. Bd5 {[%clk 0:00:13]}  Rd4 {[%clk 0:01:36]} 40. Bc6 {[%clk 0:00:12]}  Kg8 {[%clk 0:01:25]} 41. Rb7 {[%clk 0:00:11]}  Rd2 {[%clk 0:01:22]} 42. e6 {[%clk 0:00:11]} 1-0


[Site "https://www.chess.com"]

[Event "Titled Tuesday Blitz April 26 Late 2022"]
[White "Dobre, Claudiu-Cristian"]
[Black "Araujo Filho, Luiz Antonio Coel"]
[WhiteFideId "1211854"]
[BlackFideId "2130661"]
[WhiteElo "2207"]
[BlackElo "2318"]
[Result "1-0"]
[Round "04"]
[TimeControl "180+1"]
[Date "2022.04.26"]
[WhiteClock "0:01:21"]
[BlackClock "0:00:46"]

1. c4 {[%clk 0:03:00]}  f5 {[%clk 0:02:57]} 2. Nf3 {[%clk 0:02:58]}  Nf6 {[%clk 0:02:50]} 3. g3 {[%clk 0:02:58]}  g6 {[%clk 0:02:45]} 4. b4 {[%clk 0:02:57]}  Bg7 {[%clk 0:02:45]} 5. Bb2 {[%clk 0:02:57]}  O-O {[%clk 0:02:45]} 6. Bg2 {[%clk 0:02:57]}  d6 {[%clk 0:02:46]} 7. O-O {[%clk 0:02:56]}  e5 {[%clk 0:02:46]} 8. d3 {[%clk 0:02:57]}  Qe7 {[%clk 0:02:45]} 9. Qb3 {[%clk 0:02:56]}  Kh8 {[%clk 0:02:40]} 10. Nbd2 {[%clk 0:02:52]}  Nc6 {[%clk 0:02:32]} 11. e3 {[%clk 0:02:40]}  h6 {[%clk 0:02:29]} 12. b5 {[%clk 0:02:21]}  Nd8 {[%clk 0:02:24]} 13. c5 {[%clk 0:02:17]}  Nf7 {[%clk 0:02:07]} 14. Nc4 {[%clk 0:02:07]}  g5 {[%clk 0:01:50]} 15. cxd6 {[%clk 0:02:02]}  cxd6 {[%clk 0:01:48]} 16. Ba3 {[%clk 0:01:56]}  Be6 {[%clk 0:01:44]} 17. Rac1 {[%clk 0:01:47]}  Kh7 {[%clk 0:01:35]} 18. Qa4 {[%clk 0:01:40]}  Qd7 {[%clk 0:01:06]} 19. Na5 {[%clk 0:01:26]}  Bxa2 {[%clk 0:00:50]} 20. Nxb7 {[%clk 0:01:22]}  Qxb7 {[%clk 0:00:46]} 21. Nxg5+ {[%clk 0:01:21]} 1-0


[Site "https://www.chess.com"]

[Event "Titled Tuesday Blitz April 26 Late 2022"]
[White "Eggleston, Thomas A"]
[Black "Fiol, Fabrice"]
[WhiteFideId "412139"]
[BlackFideId "611670"]
[WhiteElo "2174"]
[BlackElo "2447"]
[Result "0-1"]
[Round "04"]
[TimeControl "180+1"]
[Date "2022.04.26"]
[WhiteClock "0:00:02"]
[BlackClock "0:00:07"]

1. e4 {[%clk 0:03:00]}  c5 {[%clk 0:02:59]} 2. Nf3 {[%clk 0:03:00]}  e6 {[%clk 0:02:59]} 3. c3 {[%clk 0:03:00]}  d5 {[%clk 0:02:57]} 4. exd5 {[%clk 0:02:59]}  exd5 {[%clk 0:02:57]} 5. d4 {[%clk 0:03:00]}  Nf6 {[%clk 0:02:57]} 6. Bb5+ {[%clk 0:03:00]}  Bd7 {[%clk 0:02:57]} 7. Qe2+ {[%clk 0:02:59]}  Qe7 {[%clk 0:02:56]} 8. Ne5 {[%clk 0:02:54]}  a6 {[%clk 0:02:54]} 9. Bxd7+ {[%clk 0:02:47]}  Nbxd7 {[%clk 0:02:55]} 10. O-O {[%clk 0:02:47]}  Nxe5 {[%clk 0:02:31]} 11. dxe5 {[%clk 0:02:47]}  Nd7 {[%clk 0:02:31]} 12. f4 {[%clk 0:02:42]}  g6 {[%clk 0:02:31]} 13. c4 {[%clk 0:02:41]}  dxc4 {[%clk 0:02:24]} 14. Nd2 {[%clk 0:02:41]}  Bg7 {[%clk 0:02:23]} 15. Nxc4 {[%clk 0:02:32]}  O-O {[%clk 0:02:23]} 16. Nd6 {[%clk 0:02:23]}  Nxe5 {[%clk 0:02:16]} 17. fxe5 {[%clk 0:02:18]}  Bxe5 {[%clk 0:02:15]} 18. Ne4 {[%clk 0:02:12]}  f5 {[%clk 0:02:05]} 19. Qc4+ {[%clk 0:02:06]}  Kh8 {[%clk 0:02:02]} 20. Nc3 {[%clk 0:01:39]}  Bd4+ {[%clk 0:01:55]} 21. Kh1 {[%clk 0:01:39]}  b5 {[%clk 0:01:55]} 22. Qe2 {[%clk 0:01:26]}  Qh4 {[%clk 0:01:47]} 23. Qf3 {[%clk 0:01:22]}  Rae8 {[%clk 0:01:41]} 24. Bf4 {[%clk 0:01:18]}  b4 {[%clk 0:01:34]} 25. Bg3 {[%clk 0:01:16]}  Qd8 {[%clk 0:01:27]} 26. Nd5 {[%clk 0:01:03]}  Re4 {[%clk 0:01:21]} 27. Nf4 {[%clk 0:00:59]}  Bxb2 {[%clk 0:01:15]} 28. Rad1 {[%clk 0:00:57]}  Bd4 {[%clk 0:01:14]} 29. Bf2 {[%clk 0:00:51]}  Rfe8 {[%clk 0:01:10]} 30. Bxd4+ {[%clk 0:00:50]}  Rxd4 {[%clk 0:01:10]} 31. Rxd4 {[%clk 0:00:38]}  Qxd4 {[%clk 0:01:11]} 32. h4 {[%clk 0:00:32]}  a5 {[%clk 0:00:53]} 33. Rd1 {[%clk 0:00:31]}  Qf6 {[%clk 0:00:52]} 34. g3 {[%clk 0:00:28]}  c4 {[%clk 0:00:46]} 35. Nd5 {[%clk 0:00:23]}  Qe5 {[%clk 0:00:45]} 36. Qf4 {[%clk 0:00:20]}  c3 {[%clk 0:00:39]} 37. Qf2 {[%clk 0:00:09]}  Rd8 {[%clk 0:00:27]} 38. Qg2 {[%clk 0:00:07]}  c2 {[%clk 0:00:25]} 39. Qxc2 {[%clk 0:00:07]}  Kg7 {[%clk 0:00:13]} 40. Qg2 {[%clk 0:00:06]}  a4 {[%clk 0:00:11]} 41. Rd3 {[%clk 0:00:05]}  b3 {[%clk 0:00:10]} 42. axb3 {[%clk 0:00:05]}  axb3 {[%clk 0:00:11]} 43. Rxb3 {[%clk 0:00:03]}  Rxd5 {[%clk 0:00:12]} 44. Rb7+ {[%clk 0:00:03]}  Kh6 {[%clk 0:00:11]} 45. Rb1 {[%clk 0:00:03]}  Rd3 {[%clk 0:00:07]} 46. Rg1 {[%clk 0:00:02]}  Qe3 {[%clk 0:00:07]} 47. Kh2 {[%clk 0:00:02]}  Rd2 {[%clk 0:00:07]} 0-1


[Site "https://www.chess.com"]